[Event "*** Titled Tuesday 3|2 Blitz (Early)"]
[Site "Chess.com"]
[Date "2016.12.06"]
[Round "3"]
[White "GMKrikor"]
[Black "ZhuChenChess"]
[Result "0-1"]
[WhiteElo "2520"]
[BlackElo "2411"]
[TimeControl "180+2"]
[EndTime "11:34:12 PST"]
[Termination "ZhuChenChess won by resignation"]

1. e4 {[%clk 0:03:02]} 1... c5 {[%clk 0:03:00.3]} 2. Nf3 {[%clk 0:03:03.1]} 2...
d6 {[%clk 0:03:01.4]} 3. Bb5+ {[%clk 0:02:57]} 3... Nd7 {[%clk 0:03:01.7]} 4. d4
{[%clk 0:02:43.7]} 4... cxd4 {[%clk 0:03:00.8]} 5. Qxd4 {[%clk 0:02:44.8]} 5...
Nf6 {[%clk 0:02:54.6]} 6. O-O {[%clk 0:02:45.1]} 6... g6 {[%clk 0:02:37]} 7. c4
{[%clk 0:02:07.8]} 7... Bg7 {[%clk 0:02:35.8]} 8. Nc3 {[%clk 0:02:08.9]} 8...
O-O {[%clk 0:02:36]} 9. Qe3 {[%clk 0:02:01.3]} 9... Ng4 {[%clk 0:01:56.6]} 10.
Qe2 {[%clk 0:01:59.8]} 10... Bxc3 {[%clk 0:01:40.1]} 11. bxc3 {[%clk 0:02:00.8]}
11... Nc5 {[%clk 0:01:31.3]} 12. h3 {[%clk 0:01:58.2]} 12... Nf6 {[%clk
0:01:19.3]} 13. e5 {[%clk 0:01:47.5]} 13... dxe5 {[%clk 0:00:47.2]} 14. Qxe5
{[%clk 0:01:14]} 14... Qd6 {[%clk 0:00:40.1]} 15. Qxd6 {[%clk 0:01:04.6]} 15...
exd6 {[%clk 0:00:40.6]} 16. Bh6 {[%clk 0:01:06.1]} 16... a6 {[%clk 0:00:34.8]}
17. Bxf8 {[%clk 0:01:05.9]} 17... Kxf8 {[%clk 0:00:35.4]} 18. a4 {[%clk
0:00:43.8]} 18... axb5 {[%clk 0:00:23.7]} 19. axb5 {[%clk 0:00:44.9]} 19... Rxa1
{[%clk 0:00:24.4]} 20. Rxa1 {[%clk 0:00:46.8]} 20... Be6 {[%clk 0:00:25.4]} 21.
Nd2 {[%clk 0:00:41.3]} 21... Nfe4 {[%clk 0:00:22.9]} 22. Nxe4 {[%clk 0:00:23]}
22... Nxe4 {[%clk 0:00:23.9]} 23. Ra8+ {[%clk 0:00:19]} 23... Ke7 {[%clk
0:00:24]} 24. g4 {[%clk 0:00:18.3]} 24... Bxc4 {[%clk 0:00:23.7]} 25. b6 {[%clk
0:00:18]} 25... Nc5 {[%clk 0:00:23.3]} 26. Rh8 {[%clk 0:00:18.6]} 26... Na4
{[%clk 0:00:20.1]} 27. Rxh7 {[%clk 0:00:15.9]} 27... Nxb6 {[%clk 0:00:21.3]} 28.
h4 {[%clk 0:00:16.7]} 28... Bd3 {[%clk 0:00:20.7]} 29. Rh8 {[%clk 0:00:16.7]}
29... Nd5 {[%clk 0:00:20.8]} 30. Rb8 {[%clk 0:00:15.5]} 30... b5 {[%clk
0:00:20.9]} 31. Rc8 {[%clk 0:00:13.7]} 31... Bc4 {[%clk 0:00:20.3]} 32. h5
{[%clk 0:00:15.3]} 32... gxh5 {[%clk 0:00:21]} 33. gxh5 {[%clk 0:00:17.2]} 33...
Kf6 {[%clk 0:00:18]} 34. Rg8 {[%clk 0:00:14.4]} 34... Ne7 {[%clk 0:00:17.2]} 35.
h6 {[%clk 0:00:14]} 35... Nxg8 {[%clk 0:00:17.4]} 36. h7 {[%clk 0:00:15.5]}
36... Kg7 {[%clk 0:00:19]} 0-1

[Event "*** Titled Tuesday 3|2 Blitz (Early)"]
[Site "Chess.com"]
[Date "2016.12.06"]
[Round "3"]
[White "Andrejkin"]
[Black "AungTZ"]
[Result "1-0"]
[WhiteElo "2192"]
[BlackElo "2103"]
[TimeControl "180+2"]
[EndTime "11:34:14 PST"]
[Termination "Andrejkin won on time"]

1. e4 {[%clk 0:03:00]} 1... c5 {[%clk 0:02:59.5]} 2. Nf3 {[%clk 0:03:00.8]} 2...
Nc6 {[%clk 0:02:59.8]} 3. d4 {[%clk 0:03:01.7]} 3... cxd4 {[%clk 0:03:00.4]} 4.
Nxd4 {[%clk 0:03:03.6]} 4... Nf6 {[%clk 0:03:02]} 5. Nc3 {[%clk 0:03:04.6]} 5...
d6 {[%clk 0:03:03.4]} 6. f3 {[%clk 0:03:03.7]} 6... e5 {[%clk 0:03:03.4]} 7. Nb3
{[%clk 0:03:03.8]} 7... Be7 {[%clk 0:03:03.7]} 8. Be3 {[%clk 0:03:04.7]} 8... a5
{[%clk 0:03:04.3]} 9. Bb5 {[%clk 0:03:03.2]} 9... O-O {[%clk 0:03:02.6]} 10. g4
{[%clk 0:03:01]} 10... Be6 {[%clk 0:03:00.3]} 11. Qd2 {[%clk 0:02:46]} 11... d5
{[%clk 0:02:57.1]} 12. exd5 {[%clk 0:02:44.9]} 12... Nxd5 {[%clk 0:02:56.9]} 13.
Nxd5 {[%clk 0:02:46.8]} 13... Bxd5 {[%clk 0:02:56.1]} 14. O-O {[%clk 0:02:46.1]}
14... a4 {[%clk 0:02:53.1]} 15. Nc5 {[%clk 0:02:45.5]} 15... Nd4 {[%clk
0:02:30.6]} 16. Bxd4 {[%clk 0:02:43.4]} 16... exd4 {[%clk 0:02:30.7]} 17. Nxa4
{[%clk 0:02:42]} 17... Bc6 {[%clk 0:01:45.4]} 18. Bxc6 {[%clk 0:02:14.6]} 18...
bxc6 {[%clk 0:01:46]} 19. b3 {[%clk 0:02:15.9]} 19... Bg5 {[%clk 0:01:45.9]} 20.
Qd3 {[%clk 0:02:12.4]} 20... Be3+ {[%clk 0:01:45.7]} 21. Kh1 {[%clk 0:02:12.1]}
21... Qh4 {[%clk 0:01:33.8]} 22. Nc5 {[%clk 0:02:08.9]} 22... Rae8 {[%clk
0:01:21.6]} 23. Ne4 {[%clk 0:02:06.5]} 23... f5 {[%clk 0:01:18.6]} 24. gxf5
{[%clk 0:02:04.2]} 24... Rxf5 {[%clk 0:01:19.1]} 25. Ng3 {[%clk 0:02:01.9]}
25... Rf6 {[%clk 0:01:13]} 26. Nf5 {[%clk 0:02:01.2]} 26... Qh3 {[%clk
0:01:07.4]} 27. Qc4+ {[%clk 0:01:57.4]} 27... Kh8 {[%clk 0:01:02.1]} 28. Nxe3
{[%clk 0:01:42.4]} 28... dxe3 {[%clk 0:01:02.6]} 29. Qg4 {[%clk 0:01:38.2]}
29... Qh6 {[%clk 0:00:58.7]} 30. a4 {[%clk 0:01:35.6]} 30... e2 {[%clk
0:00:51.7]} 31. Rfe1 {[%clk 0:01:33.8]} 31... Qe3 {[%clk 0:00:51.4]} 32. a5
{[%clk 0:01:30.2]} 32... Rxf3 {[%clk 0:00:51]} 33. c3 {[%clk 0:01:16]} 33...
Ref8 {[%clk 0:00:36.3]} 34. Rg1 {[%clk 0:01:14.1]} 34... Qxc3 {[%clk 0:00:25.1]}
35. Rae1 {[%clk 0:01:11.9]} 35... R8f4 {[%clk 0:00:15.6]} 36. Rxe2 {[%clk
0:01:05.4]} 36... Rf8 {[%clk 0:00:07.3]} 37. Reg2 {[%clk 0:01:00.7]} 37... R3f7
{[%clk 0:00:06.5]} 38. a6 {[%clk 0:00:58.2]} 38... Qa5 {[%clk 0:00:06.3]} 39.
Qc4 {[%clk 0:00:50.3]} 39... Qc7 {[%clk 0:00:03.9]} 40. b4 {[%clk 0:00:46.8]}
1-0

[Event "*** Titled Tuesday 3|2 Blitz (Early)"]
[Site "Chess.com"]
[Date "2016.12.06"]
[Round "3"]
[White "tango_argentino"]
[Black "joppie2"]
[Result "0-1"]
[WhiteElo "2344"]
[BlackElo "2542"]
[TimeControl "180+2"]
[EndTime "11:34:17 PST"]
[Termination "joppie2 won by resignation"]

1. b3 {[%clk 0:03:01.6]} 1... c6 {[%clk 0:03:02]} 2. Bb2 {[%clk 0:03:01.5]} 2...
d5 {[%clk 0:03:03.7]} 3. e3 {[%clk 0:03:02.3]} 3... Nf6 {[%clk 0:03:04.7]} 4. h3
{[%clk 0:02:57.5]} 4... g6 {[%clk 0:03:05.8]} 5. Bxf6 {[%clk 0:02:56.5]} 5...
exf6 {[%clk 0:03:07.7]} 6. d4 {[%clk 0:02:55.9]} 6... Bg7 {[%clk 0:03:07.5]} 7.
Nf3 {[%clk 0:02:56.8]} 7... O-O {[%clk 0:03:07.4]} 8. Be2 {[%clk 0:02:57.6]}
8... f5 {[%clk 0:03:08.6]} 9. O-O {[%clk 0:02:58.2]} 9... Nd7 {[%clk 0:03:10.2]}
10. c4 {[%clk 0:02:59.1]} 10... Nf6 {[%clk 0:03:11.8]} 11. Nc3 {[%clk 0:02:59]}
11... Ne4 {[%clk 0:03:12.7]} 12. Qc2 {[%clk 0:02:59.4]} 12... Be6 {[%clk
0:03:12.7]} 13. Rac1 {[%clk 0:02:58.9]} 13... Rc8 {[%clk 0:03:05.4]} 14. cxd5
{[%clk 0:02:41.3]} 14... Bxd5 {[%clk 0:02:59]} 15. Nxd5 {[%clk 0:02:40.2]} 15...
cxd5 {[%clk 0:02:58.4]} 16. Qb2 {[%clk 0:02:11.5]} 16... Qa5 {[%clk 0:02:51.7]}
17. b4 {[%clk 0:02:10.8]} 17... Qb6 {[%clk 0:02:48.7]} 18. Nd2 {[%clk
0:02:04.2]} 18... f4 {[%clk 0:02:40.2]} 19. Nxe4 {[%clk 0:01:54]} 19... dxe4
{[%clk 0:02:42.1]} 20. Qb3 {[%clk 0:01:49.9]} 20... Bh6 {[%clk 0:02:34.1]} 21.
Bg4 {[%clk 0:01:44.5]} 21... Rxc1 {[%clk 0:02:24.4]} 22. Rxc1 {[%clk 0:01:46.4]}
22... Qd6 {[%clk 0:02:22.9]} 23. exf4 {[%clk 0:01:29.3]} 23... Bxf4 {[%clk
0:02:23.4]} 24. Rd1 {[%clk 0:01:29.9]} 24... Kg7 {[%clk 0:02:21.5]} 25. d5
{[%clk 0:01:24.8]} 25... f5 {[%clk 0:02:21.9]} 26. Be2 {[%clk 0:01:26.1]} 26...
Rc8 {[%clk 0:02:22.4]} 27. Bf1 {[%clk 0:01:17.6]} 27... h5 {[%clk 0:02:22.2]}
28. Qb2+ {[%clk 0:01:14.1]} 28... Be5 {[%clk 0:02:21.5]} 29. Qd2 {[%clk
0:01:15]} 29... Bc3 {[%clk 0:02:18]} 30. Qc1 {[%clk 0:01:08.9]} 30... Rc7 {[%clk
0:02:15.4]} 31. b5 {[%clk 0:01:07.8]} 31... h4 {[%clk 0:02:12.7]} 32. Qg5 {[%clk
0:01:06.1]} 32... Bf6 {[%clk 0:02:13.4]} 33. Qe3 {[%clk 0:01:07.5]} 33... b6
{[%clk 0:02:12.8]} 34. a4 {[%clk 0:01:06.3]} 34... Rc3 {[%clk 0:02:10.8]} 35.
Qd2 {[%clk 0:01:02.8]} 35... Rc5 {[%clk 0:02:02.4]} 36. Qe3 {[%clk 0:01:01.9]}
36... Bd8 {[%clk 0:02:02.6]} 37. Qd4+ {[%clk 0:01:01.2]} 37... Kh7 {[%clk
0:02:03.3]} 38. Qd2 {[%clk 0:00:59.4]} 38... Bc7 {[%clk 0:02:03.2]} 39. g3
{[%clk 0:00:49.6]} 39... hxg3 {[%clk 0:02:03]} 40. Bg2 {[%clk 0:00:49.8]} 40...
gxf2+ {[%clk 0:02:03]} 41. Qxf2 {[%clk 0:00:51.7]} 41... Bd8 {[%clk 0:02:00.6]}
42. h4 {[%clk 0:00:49.4]} 42... Qe5 {[%clk 0:01:49.9]} 43. d6 {[%clk 0:00:48]}
43... e3 {[%clk 0:01:51.3]} 44. Qe2 {[%clk 0:00:47.2]} 44... Bxh4 {[%clk
0:01:47]} 45. d7 {[%clk 0:00:48.2]} 45... Bd8 {[%clk 0:01:46.8]} 46. Bc6 {[%clk
0:00:47.3]} 46... f4 {[%clk 0:01:46.9]} 47. Qh2+ {[%clk 0:00:47.4]} 47... Kg7
{[%clk 0:01:46.4]} 48. Rf1 {[%clk 0:00:47.9]} 48... e2 {[%clk 0:01:43.5]} 49.
Re1 {[%clk 0:00:49.2]} 49... Qe3+ {[%clk 0:01:44.1]} 50. Qf2 {[%clk 0:00:48.1]}
50... Rg5+ {[%clk 0:01:45]} 51. Bg2 {[%clk 0:00:49.6]} 51... Qc3 {[%clk
0:01:23.9]} 52. Rxe2 {[%clk 0:00:19.9]} 52... f3 {[%clk 0:01:24.1]} 53. Qe3
{[%clk 0:00:19.3]} 53... Rxg2+ {[%clk 0:01:23.4]} 54. Kf1 {[%clk 0:00:18.7]}
54... fxe2+ {[%clk 0:01:24.5]} 0-1

[Event "*** Titled Tuesday 3|2 Blitz (Early)"]
[Site "Chess.com"]
[Date "2016.12.06"]
[Round "3"]
[White "Tash_Boy"]
[Black "Aygehovit1992"]
[Result "0-1"]
[WhiteElo "2468"]
[BlackElo "2460"]
[TimeControl "180+2"]
[EndTime "11:34:26 PST"]
[Termination "Aygehovit1992 won by resignation"]

1. e4 {[%clk 0:03:01.8]} 1... g6 {[%clk 0:03:02]} 2. d4 {[%clk 0:03:02.2]} 2...
d6 {[%clk 0:03:03.5]} 3. Nc3 {[%clk 0:02:59.7]} 3... Bg7 {[%clk 0:03:04.6]} 4.
f4 {[%clk 0:02:58]} 4... a6 {[%clk 0:03:04.5]} 5. Nf3 {[%clk 0:02:57.4]} 5... b5
{[%clk 0:03:03.7]} 6. Bd3 {[%clk 0:02:58.9]} 6... Bb7 {[%clk 0:03:04.6]} 7. Be3
{[%clk 0:02:57.2]} 7... b4 {[%clk 0:03:05.6]} 8. Ne2 {[%clk 0:02:57.5]} 8... Nf6
{[%clk 0:03:05.7]} 9. e5 {[%clk 0:02:56.1]} 9... Nd5 {[%clk 0:03:05.2]} 10. Bd2
{[%clk 0:02:54.4]} 10... c5 {[%clk 0:03:06.5]} 11. exd6 {[%clk 0:02:24.8]} 11...
exd6 {[%clk 0:03:06.4]} 12. O-O {[%clk 0:02:22.8]} 12... O-O {[%clk 0:03:04.8]}
13. f5 {[%clk 0:02:19.6]} 13... Nc6 {[%clk 0:03:04.4]} 14. Bg5 {[%clk
0:02:08.8]} 14... Qb6 {[%clk 0:03:03.2]} 15. Bc4 {[%clk 0:02:01.2]} 15... Nxd4
{[%clk 0:03:03.9]} 16. Nexd4 {[%clk 0:02:01.5]} 16... cxd4 {[%clk 0:03:05.2]}
17. Bxd5 {[%clk 0:02:03.1]} 17... Bxd5 {[%clk 0:03:05.4]} 18. f6 {[%clk
0:02:04.7]} 18... Bh8 {[%clk 0:03:01]} 19. Qxd4 {[%clk 0:02:00.8]} 19... Qxd4+
{[%clk 0:02:57.5]} 20. Nxd4 {[%clk 0:02:01]} 20... Rfe8 {[%clk 0:02:58.8]} 21.
Rad1 {[%clk 0:01:44.4]} 21... Re5 {[%clk 0:02:54.5]} 22. Bf4 {[%clk 0:01:28.6]}
22... Bxf6 {[%clk 0:02:53.5]} 23. Bxe5 {[%clk 0:01:29.7]} 23... Bxe5 {[%clk
0:02:55.4]} 24. Nf3 {[%clk 0:01:26.7]} 24... Bxf3 {[%clk 0:02:50.8]} 25. Rxf3
{[%clk 0:01:27.5]} 25... Rc8 {[%clk 0:02:52.4]} 26. Rf2 {[%clk 0:01:22.5]} 26...
f5 {[%clk 0:02:46.3]} 27. Re2 {[%clk 0:01:17.5]} 27... Kf7 {[%clk 0:02:45.5]}
28. g3 {[%clk 0:01:17.8]} 28... Ke6 {[%clk 0:02:46.2]} 29. Kg2 {[%clk 0:01:17]}
29... a5 {[%clk 0:02:47]} 30. b3 {[%clk 0:01:11.7]} 30... h5 {[%clk 0:02:42.9]}
31. Rd3 {[%clk 0:01:04.9]} 31... g5 {[%clk 0:02:38.5]} 32. Red2 {[%clk
0:00:52.3]} 32... Rc5 {[%clk 0:02:35.9]} 33. Re2 {[%clk 0:00:51.5]} 33... g4
{[%clk 0:02:25.3]} 34. Rd1 {[%clk 0:00:47.3]} 34... h4 {[%clk 0:02:24.2]} 35.
gxh4 {[%clk 0:00:45.2]} 35... f4 {[%clk 0:02:25.4]} 36. Red2 {[%clk 0:00:40.4]}
36... Rc3 {[%clk 0:02:22]} 37. Re1 {[%clk 0:00:38.6]} 37... Rh3 {[%clk
0:02:18.6]} 38. Kg1 {[%clk 0:00:37.2]} 38... Rxh4 {[%clk 0:02:13.2]} 39. Rd3
{[%clk 0:00:29.8]} 39... f3 {[%clk 0:02:06.6]} 40. Rd2 {[%clk 0:00:27.1]} 40...
Kf5 {[%clk 0:02:06]} 41. Red1 {[%clk 0:00:25.1]} 41... Rh8 {[%clk 0:01:58.4]}
42. Rf2 {[%clk 0:00:24.3]} 42... Ke4 {[%clk 0:01:30.7]} 43. Rd3 {[%clk
0:00:24.1]} 43... Bd4 {[%clk 0:01:26.9]} 44. Rd2 {[%clk 0:00:18.5]} 44... Bxf2+
{[%clk 0:01:26.7]} 45. Rxf2 {[%clk 0:00:19.1]} 45... Ke3 {[%clk 0:01:26.6]} 46.
Kf1 {[%clk 0:00:19.3]} 46... g3 {[%clk 0:01:25.7]} 0-1

[Event "*** Titled Tuesday 3|2 Blitz (Early)"]
[Site "Chess.com"]
[Date "2016.12.06"]
[Round "3"]
[White "GM_Donatello"]
[Black "Evgeny_Levin"]
[Result "0-1"]
[WhiteElo "2568"]
[BlackElo "2732"]
[TimeControl "180+2"]
[EndTime "11:34:33 PST"]
[Termination "Evgeny_Levin won by resignation"]

1. e4 {[%clk 0:02:47.3]} 1... c5 {[%clk 0:03:00.3]} 2. Nf3 {[%clk 0:02:48.3]}
2... d6 {[%clk 0:03:00.6]} 3. Bb5+ {[%clk 0:02:49.2]} 3... Nd7 {[%clk
0:03:00.1]} 4. O-O {[%clk 0:02:49.6]} 4... Nf6 {[%clk 0:03:00.2]} 5. Re1 {[%clk
0:02:50.3]} 5... a6 {[%clk 0:02:59.2]} 6. Bd3 {[%clk 0:02:51.4]} 6... e6 {[%clk
0:02:54.8]} 7. c3 {[%clk 0:02:52]} 7... Be7 {[%clk 0:02:53.9]} 8. Bc2 {[%clk
0:02:53.1]} 8... b5 {[%clk 0:02:51.3]} 9. d4 {[%clk 0:02:53.2]} 9... Bb7 {[%clk
0:02:50.7]} 10. Nbd2 {[%clk 0:02:52.4]} 10... O-O {[%clk 0:02:46.1]} 11. Nf1
{[%clk 0:02:53.4]} 11... e5 {[%clk 0:02:29.1]} 12. Ng3 {[%clk 0:02:49]} 12...
Re8 {[%clk 0:02:29.7]} 13. d5 {[%clk 0:02:38.4]} 13... g6 {[%clk 0:02:22.9]} 14.
b3 {[%clk 0:02:38.7]} 14... c4 {[%clk 0:02:17.4]} 15. bxc4 {[%clk 0:02:39.3]}
15... bxc4 {[%clk 0:02:18.9]} 16. h3 {[%clk 0:02:24.2]} 16... Qc7 {[%clk
0:02:16]} 17. Be3 {[%clk 0:02:25.4]} 17... Nc5 {[%clk 0:02:12.7]} 18. Nd2 {[%clk
0:02:26.2]} 18... a5 {[%clk 0:01:59.3]} 19. Nxc4 {[%clk 0:01:58.5]} 19... Ncxe4
{[%clk 0:01:58.7]} 20. Nb6 {[%clk 0:01:58.5]} 20... Nxc3 {[%clk 0:01:54.1]} 21.
Nxa8 {[%clk 0:01:58.1]} 21... Bxa8 {[%clk 0:01:44.8]} 22. Qd2 {[%clk 0:01:57.4]}
22... Nfxd5 {[%clk 0:01:44.6]} 23. Bh6 {[%clk 0:01:54.4]} 23... Qc6 {[%clk
0:01:39.6]} 24. f3 {[%clk 0:01:07]} 24... Bh4 {[%clk 0:01:35]} 25. Kh2 {[%clk
0:01:08.1]} 25... Nb4 {[%clk 0:01:21.5]} 26. Bb3 {[%clk 0:00:57]} 26... d5
{[%clk 0:01:18.6]} 27. Bg5 {[%clk 0:00:56.2]} 27... Bxg3+ {[%clk 0:01:12.8]} 28.
Kxg3 {[%clk 0:00:56.4]} 28... d4 {[%clk 0:01:14.4]} 29. Kh2 {[%clk 0:00:56.2]}
29... a4 {[%clk 0:01:02.3]} 30. Bd1 {[%clk 0:00:54.5]} 30... f6 {[%clk
0:01:03.3]} 31. Bh4 {[%clk 0:00:54.4]} 31... Kg7 {[%clk 0:01:00]} 32. a3 {[%clk
0:00:54.4]} 32... Nbd5 {[%clk 0:00:59.7]} 33. Rc1 {[%clk 0:00:53.2]} 33... Qd6
{[%clk 0:00:56.4]} 34. Bc2 {[%clk 0:00:47.9]} 34... Qxa3 {[%clk 0:00:50.5]} 35.
Be4 {[%clk 0:00:49.1]} 35... Nxe4 {[%clk 0:00:42.4]} 36. fxe4 {[%clk 0:00:51]}
36... Nc3 {[%clk 0:00:42.5]} 37. Rf1 {[%clk 0:00:42.8]} 37... Rf8 {[%clk
0:00:42.9]} 38. Qd3 {[%clk 0:00:39.7]} 38... Bxe4 {[%clk 0:00:38.4]} 39. Qa6
{[%clk 0:00:40.3]} 39... g5 {[%clk 0:00:32.2]} 40. Bg3 {[%clk 0:00:28.2]} 40...
Qb2 {[%clk 0:00:32.7]} 41. Bf2 {[%clk 0:00:22.1]} 41... Qb7 {[%clk 0:00:31.2]}
42. Qd6 {[%clk 0:00:20]} 42... Bxg2 {[%clk 0:00:26.1]} 43. Rg1 {[%clk
0:00:21.3]} 43... Be4 {[%clk 0:00:23.1]} 44. Bxd4 {[%clk 0:00:20.8]} 44... exd4
{[%clk 0:00:21.7]} 45. Qxd4 {[%clk 0:00:22.7]} 45... Qb2+ {[%clk 0:00:19]} 46.
Kg3 {[%clk 0:00:23.2]} 46... Ne2+ {[%clk 0:00:19.4]} 0-1

[Event "*** Titled Tuesday 3|2 Blitz (Early)"]
[Site "Chess.com"]
[Date "2016.12.06"]
[Round "3"]
[White "Hieronymus00"]
[Black "Ind1anStar"]
[Result "0-1"]
[WhiteElo "2114"]
[BlackElo "2166"]
[TimeControl "180+2"]
[EndTime "11:34:35 PST"]
[Termination "Ind1anStar won on time"]

1. e4 {[%clk 0:02:51.8]} 1... e6 {[%clk 0:02:59.6]} 2. d4 {[%clk 0:02:52.3]}
2... d5 {[%clk 0:03:00.4]} 3. Nc3 {[%clk 0:02:53.3]} 3... Bb4 {[%clk 0:02:59.8]}
4. a3 {[%clk 0:02:50.4]} 4... Bxc3+ {[%clk 0:02:59.8]} 5. bxc3 {[%clk
0:02:51.8]} 5... dxe4 {[%clk 0:03:01]} 6. Qg4 {[%clk 0:02:53.4]} 6... Nf6 {[%clk
0:03:02]} 7. Qxg7 {[%clk 0:02:54.8]} 7... Rg8 {[%clk 0:03:03]} 8. Qh6 {[%clk
0:02:56.4]} 8... Rg6 {[%clk 0:03:03.9]} 9. Qd2 {[%clk 0:02:55.7]} 9... b6 {[%clk
0:03:04.6]} 10. c4 {[%clk 0:02:40.7]} 10... Bb7 {[%clk 0:03:04.3]} 11. Bb2
{[%clk 0:02:41.2]} 11... Nbd7 {[%clk 0:03:03]} 12. O-O-O {[%clk 0:02:38.1]}
12... Qe7 {[%clk 0:03:01.8]} 13. Ne2 {[%clk 0:02:36.5]} 13... O-O-O {[%clk
0:03:02.2]} 14. h3 {[%clk 0:02:36]} 14... c5 {[%clk 0:02:45.8]} 15. Nf4 {[%clk
0:02:28.2]} 15... Rgg8 {[%clk 0:02:36.6]} 16. d5 {[%clk 0:02:26.5]} 16... exd5
{[%clk 0:02:33.9]} 17. cxd5 {[%clk 0:02:22.3]} 17... Qd6 {[%clk 0:02:23]} 18. g3
{[%clk 0:02:12.4]} 18... Ne5 {[%clk 0:02:19.1]} 19. Qc3 {[%clk 0:02:07]} 19...
Rge8 {[%clk 0:02:11.1]} 20. Qb3 {[%clk 0:01:06.8]} 20... Nxd5 {[%clk 0:02:00.2]}
21. Qa4 {[%clk 0:00:34.5]} 21... Qb8 {[%clk 0:01:41.9]} 22. Bb5 {[%clk
0:00:30.3]} 22... Rg8 {[%clk 0:01:28.1]} 23. Rhe1 {[%clk 0:00:23.8]} 23... f6
{[%clk 0:01:11.9]} 24. Rxe4 {[%clk 0:00:17.3]} 24... Nxf4 {[%clk 0:01:12.3]} 25.
Rxd8+ {[%clk 0:00:17.4]} 25... Rxd8 {[%clk 0:01:12]} 26. Rxf4 {[%clk 0:00:18.3]}
26... Qd6 {[%clk 0:01:11]} 27. Bc3 {[%clk 0:00:19.2]} 27... Kb8 {[%clk
0:00:49.7]} 28. Kb2 {[%clk 0:00:19.3]} 28... Qe6 {[%clk 0:00:40.3]} 29. h4
{[%clk 0:00:18.3]} 29... Rf8 {[%clk 0:00:39.1]} 30. h5 {[%clk 0:00:17]} 30... h6
{[%clk 0:00:36.6]} 31. Ba6 {[%clk 0:00:10.9]} 31... Rd8 {[%clk 0:00:34.3]} 32.
Bxb7 {[%clk 0:00:10.6]} 32... Kxb7 {[%clk 0:00:34.9]} 33. Qb5 {[%clk 0:00:09.4]}
33... a6 {[%clk 0:00:32.8]} 34. Qb3 {[%clk 0:00:08.6]} 34... c4 {[%clk
0:00:31.6]} 35. Qb4 {[%clk 0:00:08.3]} 35... a5 {[%clk 0:00:29.4]} 36. Qa4
{[%clk 0:00:07.9]} 36... Rc8 {[%clk 0:00:25.5]} 37. Kb1 {[%clk 0:00:04.5]} 37...
Nd7 {[%clk 0:00:24.1]} 38. Qb5 {[%clk 0:00:03.5]} 38... Rc5 {[%clk 0:00:23]} 39.
Qb2 {[%clk 0:00:04.3]} 39... f5 {[%clk 0:00:21.5]} 40. Bd4 {[%clk 0:00:04.5]}
40... Rd5 {[%clk 0:00:22.6]} 41. Be3 {[%clk 0:00:04.2]} 41... Qc6 {[%clk
0:00:23.4]} 0-1

[Event "*** Titled Tuesday 3|2 Blitz (Early)"]
[Site "Chess.com"]
[Date "2016.12.06"]
[Round "3"]
[White "jcibarra"]
[Black "rubhani"]
[Result "0-1"]
[WhiteElo "2619"]
[BlackElo "2407"]
[TimeControl "180+2"]
[EndTime "11:34:48 PST"]
[Termination "rubhani won by resignation"]

1. e4 {[%clk 0:03:02]} 1... c5 {[%clk 0:02:57.8]} 2. Nf3 {[%clk 0:03:02.9]} 2...
d6 {[%clk 0:02:58]} 3. d4 {[%clk 0:03:03.6]} 3... cxd4 {[%clk 0:02:59.9]} 4.
Nxd4 {[%clk 0:03:05]} 4... Nf6 {[%clk 0:03:01]} 5. Nc3 {[%clk 0:03:05.4]} 5...
a6 {[%clk 0:03:02.3]} 6. Be3 {[%clk 0:03:05.4]} 6... e5 {[%clk 0:03:02.9]} 7.
Nf3 {[%clk 0:03:06.6]} 7... Qc7 {[%clk 0:03:03]} 8. a4 {[%clk 0:03:07.1]} 8...
Be6 {[%clk 0:03:04]} 9. a5 {[%clk 0:03:05.7]} 9... h6 {[%clk 0:03:04.5]} 10. Be2
{[%clk 0:02:59.7]} 10... Qc6 {[%clk 0:03:04.9]} 11. Ra4 {[%clk 0:02:46.6]} 11...
Nbd7 {[%clk 0:03:02]} 12. O-O {[%clk 0:02:41.9]} 12... Be7 {[%clk 0:03:03]} 13.
Qd3 {[%clk 0:02:40.4]} 13... O-O {[%clk 0:03:01.7]} 14. Rd1 {[%clk 0:02:40.8]}
14... Rac8 {[%clk 0:02:58.6]} 15. Nh4 {[%clk 0:02:28.6]} 15... Rfd8 {[%clk
0:02:16.1]} 16. Nf5 {[%clk 0:02:24.8]} 16... Bxf5 {[%clk 0:01:43.7]} 17. exf5
{[%clk 0:02:26.7]} 17... d5 {[%clk 0:01:26.8]} 18. Rh4 {[%clk 0:02:04]} 18... d4
{[%clk 0:01:26.3]} 19. Bxh6 {[%clk 0:01:50]} 19... dxc3 {[%clk 0:01:05.5]} 20.
Bxg7 {[%clk 0:01:47.5]} 20... Ne8 {[%clk 0:00:56.5]} 21. Rh8+ {[%clk 0:01:11.9]}
21... Kxg7 {[%clk 0:00:56.7]} 22. Qh3 {[%clk 0:00:49]} 22... Bg5 {[%clk
0:00:47.8]} 23. Rh7+ {[%clk 0:00:33.4]} 23... Kf6 {[%clk 0:00:26]} 24. Qh5
{[%clk 0:00:26.6]} 24... Ng7 {[%clk 0:00:27.1]} 25. Rh6+ {[%clk 0:00:22.8]}
25... Bxh6 {[%clk 0:00:24.8]} 26. Qxh6+ {[%clk 0:00:24.3]} 26... Ke7 {[%clk
0:00:26.1]} 27. Qxg7 {[%clk 0:00:25.6]} 27... Qf6 {[%clk 0:00:26.6]} 28. Qg3
{[%clk 0:00:25.4]} 28... cxb2 {[%clk 0:00:25.7]} 29. Qa3+ {[%clk 0:00:25]} 29...
Ke8 {[%clk 0:00:27]} 30. Qxb2 {[%clk 0:00:26.9]} 30... Nc5 {[%clk 0:00:27.6]}
31. Re1 {[%clk 0:00:27.1]} 31... Kf8 {[%clk 0:00:28.1]} 32. Qb4 {[%clk
0:00:21.1]} 32... Rd4 {[%clk 0:00:28.7]} 33. Qa3 {[%clk 0:00:21.2]} 33... Qd6
{[%clk 0:00:29.7]} 34. h4 {[%clk 0:00:21.4]} 34... Ne4 {[%clk 0:00:30.2]} 35.
Qe3 {[%clk 0:00:21.4]} 35... Rc3 {[%clk 0:00:29.4]} 36. Qc1 {[%clk 0:00:21]}
36... Rd2 {[%clk 0:00:30.4]} 37. Bd3 {[%clk 0:00:22.4]} 37... Rdxd3 {[%clk
0:00:30.6]} 38. Qb1 {[%clk 0:00:15.3]} 38... Qd4 {[%clk 0:00:22.9]} 39. cxd3
{[%clk 0:00:13.3]} 39... Qxf2+ {[%clk 0:00:23.9]} 40. Kh2 {[%clk 0:00:14.3]}
40... Rc2 {[%clk 0:00:24.2]} 41. Qxc2 {[%clk 0:00:07.8]} 41... Qxc2 {[%clk
0:00:24.2]} 42. dxe4 {[%clk 0:00:09.1]} 42... Qf2 {[%clk 0:00:24.7]} 43. Rc1
{[%clk 0:00:06.7]} 43... Qf4+ {[%clk 0:00:25.1]} 0-1